[Event "Hungarian Youth-ch I 2024"]
[Site "Szolnok"]
[Date "2024.04.01"]
[Round "1.27"]
[White "Bende, Eniko Tunde"]
[Black "Szarvas, Nora"]
[Result "0-1"]
[ECO "B22"]
[WhiteElo "1650"]
[BlackElo "1955"]
[Annotator "NA"]
[PlyCount "72"]
[EventDate "2024.03.31"]
[EventType "swiss"]
[EventCountry "HUN"]
[SourceTitle "playchess.com"]
[Source "ChessBase"]
[SourceQuality "1"]
[TimeControl "5400+30"]

1. e4 {[%emt 0:00:03]} c5 {[%emt 0:00:21]} 2. c3 {[%emt 0:00:07]} Nf6 {[%emt 0:00:18]} 3. e5 {[%emt 0:00:17]} Nd5 {[%emt 0:00:08]} 4. d4 {[%emt 0:00:13]} cxd4 {[%emt 0:00:15]} 5. Nf3 {[%emt 0:00:15]} Nc6 {[%emt 0:03:34]} 6. cxd4 {[%emt 0:00:31]} d6 {[%emt 0:01:07]} 7. Bc4 {[%emt 0:01:23]} Nb6 {[%emt 0:01:48]} 8. Bb3 {[%emt 0:00:59]} e6 {[%emt 0:05:14]} 9. O-O {[%emt 0:00:37]} Be7 {[%emt 0:02:30]} 10. Nc3 {[%emt 0:00:46]} O-O {[%emt 0:00:54]} 11. Bf4 {[%emt 0:00:42]} dxe5 {[%emt 0:14:24]} 12. dxe5 {[%emt 0:00:17]} Qc7 {[%emt 0:01:14]} 13. Nb5 {[%emt 0:01:20]} Qb8 {[%emt 0:00:48]} 14. Qe2 {[%emt 0:01:03]} Bd7 {[%emt 0:14:51]} 15. Rac1 {[%emt 0:01:28]} a6 {[%emt 0:15:38]} 16. Nd6 {[%emt 0:00:16]} Na5 {[%emt 0:05:05]} 17. Bc2 {[%emt 0:03:57]} Nd5 {[%emt 0:06:30]} 18. Bg3 {[%emt 0:04:28]} b5 {[%emt 0:06:44]} 19. Qe4 {[%emt 0:01:32]} g6 {[%emt 0:00:44]} 20. Nh4 {[%emt 0:13:44]} Nc4 {[%emt 0:05:29]} 21. Nxc4 {[%emt 0:05:19]} bxc4 {[%emt 0:00:02]} 22. Qg4 {[%emt 0:14:02]} Kg7 {[%emt 0:01:38]} 23. Be4 {[%emt 0:04:20]} Qb5 {[%emt 0:02:12]} 24. Nf3 {[%emt 0:10:18]} h5 {[%emt 0:02:09]} 25. Qh3 {[%emt 0:05:00]} Rad8 {[%emt 0:01:41]} 26. Rfe1 {[%emt 0:03:26]} Qxb2 {[%emt 0:04:37]} 27. Bh4 {[%emt 0:05:27]} Nf4 {[%emt 0:02:04]} 28. Qg3 {[%emt 0:03:57]} Qxc1 {[%emt 0:00:15]} 29. Bf6+ {[%emt 0:01:22]} Bxf6 {[%emt 0:00:19]} 30. exf6+ {[%emt 0:00:13]} Kg8 {[%emt 0:00:34]} 31. Kf1 {[%emt 0:07:16]} Ne2 {[%emt 0:00:15]} 32. Kxe2 {[%emt 0:02:38]} Qh6 {[%emt 0:00:08]} 33. Qh4 {[%emt 0:04:21]} c3 {[%emt 0:00:17]} 34. g4 {[%emt 0:03:03]} Bb5+ {[%emt 0:00:05]} 35. Bd3 {[%emt 0:01:40]} Bxd3+ {[%emt 0:00:06]} 36. Kd1 {[%emt 0:00:49]} c2# {[%emt 0:00:03]} 0-1

[Event "Hungarian Youth-ch I 2024"]
[Site "Szolnok"]
[Date "2024.04.02"]
[Round "2.1"]
[White "Kocsmar, Akos"]
[Black "Jankovics, Emod"]
[Result "1-0"]
[ECO "E73"]
[WhiteElo "2029"]
[BlackElo "1699"]
[Annotator "RC"]
[PlyCount "42"]
[EventDate "2024.03.31"]
[EventType "swiss"]
[EventCountry "HUN"]
[SourceTitle "playchess.com"]
[Source "ChessBase"]
[SourceQuality "1"]
[TimeControl "5400+30"]

1. d4 {[%emt 0:00:02]} Nf6 {[%emt 0:00:04]} 2. c4 {[%emt 0:00:04]} g6 {[%emt 0:00:03]} 3. Nc3 {[%emt 0:00:05]} Bg7 {[%emt 0:00:03]} 4. e4 {[%emt 0:00:04]} d6 {[%emt 0:00:02]} 5. Be2 {[%emt 0:00:06]} e5 {[%emt 0:17:37]} 6. d5 {[%emt 0:00:14]} Nbd7 {[%emt 0:00:35]} 7. Be3 {[%emt 0:00:39]} Nc5 {[%emt 0:01:17]} 8. f3 {[%emt 0:01:04]} a5 {[%emt 0:01:06]} 9. Qd2 {[%emt 0:00:50]} h6 {[%emt 0:06:04]} 10. O-O-O {[%emt 0:04:08]} b6 {[%emt 0:02:37]} 11. g4 {[%emt 0:04:04]} h5 {[%emt 0:18:49]} 12. g5 {[%emt 0:02:12]} Nfd7 {[%emt 0:02:55]} 13. h4 {[%emt 0:00:06]} Ba6 {[%emt 0:03:08]} 14. Nh3 {[%emt 0:01:15]} Qe7 {[%emt 0:04:54]} 15. Kb1 {[%emt 0:00:21]} O-O {[%emt 0:05:04]} 16. Qc2 {[%emt 0:03:37]} Rab8 {[%emt 0:03:56]} 17. b3 {[%emt 0:03:18]} Rb7 {[%emt 0:04:55]} 18. a3 {[%emt 0:00:31]} b5 {[%emt 0:24:30]} 19. cxb5 {[%emt 0:00:05]} Rfb8 {[%emt 0:00:05]} 20. bxa6 {[%emt 0:06:54]} Rxb3+ {[%emt 0:00:08]} 21. Ka2 {[%emt 0:00:14]} Rb2+ 1-0

[Event "Hungarian Youth-ch I 2024"]
[Site "Szolnok"]
[Date "2024.04.02"]
[Round "2.2"]
[White "Bekesi, Aron"]
[Black "Frank, Balint"]
[Result "1-0"]
[ECO "C45"]
[WhiteElo "1783"]
[BlackElo "1939"]
[Annotator "RC"]
[PlyCount "61"]
[EventDate "2024.03.31"]
[EventType "swiss"]
[EventCountry "HUN"]
[SourceTitle "playchess.com"]
[Source "ChessBase"]
[SourceQuality "1"]
[TimeControl "5400+30"]

1. e4 {[%emt 0:00:03]} e5 {[%emt 0:00:10]} 2. Nf3 {[%emt 0:00:07]} Nc6 {[%emt 0:00:07]} 3. d4 {[%emt 0:00:37]} exd4 {[%emt 0:00:08]} 4. Nxd4 {[%emt 0:00:04]} Nf6 {[%emt 0:00:15]} 5. Nxc6 {[%emt 0:00:21]} bxc6 {[%emt 0:00:09]} 6. e5 {[%emt 0:02:04]} Qe7 {[%emt 0:00:41]} 7. Qe2 {[%emt 0:00:56]} Nd5 {[%emt 0:00:06]} 8. c4 {[%emt 0:01:09]} Ba6 {[%emt 0:01:25]} 9. h4 {[%emt 0:01:35]} f6 {[%emt 0:05:27]} 10. exf6 {[%emt 0:04:11]} Nxf6 {[%emt 0:04:01]} 11. Rh3 {[%emt 0:25:38]} Qxe2+ {[%emt 0:04:43]} 12. Bxe2 {[%emt 0:00:17]} O-O-O {[%emt 0:01:31]} 13. Be3 {[%emt 0:08:22]} Bb4+ {[%emt 0:14:01]} 14. Kf1 {[%emt 0:04:09]} d5 {[%emt 0:17:22]} 15. Bxa7 {[%emt 0:05:53]} d4 {[%emt 0:02:50]} 16. Rb3 {[%emt 0:03:41]} d3 {[%emt 0:16:41]} 17. Bxd3 {[%emt 0:12:00]} Rxd3 {[%emt 0:00:18]} 18. Rxb4 {[%emt 0:00:23]} Re8 {[%emt 0:02:34]} 19. Rb8+ {[%emt 0:03:45]} Kd7 {[%emt 0:00:09]} 20. Rxe8 {[%emt 0:00:15]} Kxe8 {[%emt 0:00:39]} 21. b3 {[%emt 0:00:13]} Rd1+ {[%emt 0:01:10]} 22. Ke2 {[%emt 0:00:27]} Rg1 {[%emt 0:08:19]} 23. g3 {[%emt 0:01:13]} Bc8 {[%emt 0:00:52]} 24. Bd4 {[%emt 0:01:19]} Bg4+ {[%emt 0:07:23]} 25. f3 {[%emt 0:00:19]} Rg2+ {[%emt 0:00:22]} 26. Bf2 {[%emt 0:00:32]} Ne4 {[%emt 0:05:36]} 27. fxg4 {[%emt 0:00:32]} Nxf2 {[%emt 0:00:06]} 28. Kf3 {[%emt 0:00:35]} Rh2 {[%emt 0:00:10]} 29. a4 {[%emt 0:02:38]} Kd7 {[%emt 0:02:26]} 30. Nc3 {[%emt 0:02:20]} Nd3 {[%emt 0:00:52]} 31. Rd1 {[%emt 0:00:31]} 1-0

[Event "Hungarian Youth-ch I 2024"]
[Site "Szolnok"]
[Date "2024.04.02"]
[Round "2.3"]
[White "Szikszai, Bertalan"]
[Black "Fule, Simon"]
[Result "1/2-1/2"]
[ECO "C55"]
[WhiteElo "2312"]
[BlackElo "2262"]
[Annotator "RC"]
[PlyCount "55"]
[EventDate "2024.03.31"]
[EventType "swiss"]
[EventCountry "HUN"]
[SourceTitle "playchess.com"]
[Source "ChessBase"]
[SourceQuality "1"]
[TimeControl "5400+30"]

1. e4 {[%emt 0:00:39]} e5 {[%emt 0:00:20]} 2. Nf3 {[%emt 0:00:18]} Nc6 {[%emt 0:00:06]} 3. Bc4 {[%emt 0:00:23]} Nf6 {[%emt 0:00:11]} 4. d3 {[%emt 0:00:12]} h6 {[%emt 0:00:33]} 5. c3 {[%emt 0:02:07]} d6 {[%emt 0:00:20]} 6. O-O {[%emt 0:00:10]} g5 {[%emt 0:00:49]} 7. a4 {[%emt 0:00:23]} Bg7 {[%emt 0:02:52]} 8. a5 {[%emt 0:00:49]} a6 {[%emt 0:00:45]} 9. Nbd2 {[%emt 0:01:09]} Nh5 {[%emt 0:11:56]} 10. g3 {[%emt 0:03:34]} Qf6 {[%emt 0:35:22]} 11. Nh4 {[%emt 0:23:32]} gxh4 {[%emt 0:22:49]} 12. Qxh5 {[%emt 0:00:38]} Bh3 {[%emt 0:00:08]} 13. Re1 {[%emt 0:06:09]} Ne7 {[%emt 0:05:09]} 14. Nf3 {[%emt 0:12:58]} Ng6 {[%emt 0:00:14]} 15. Be3 {[%emt 0:00:47]} Bf8 {[%emt 0:03:38]} 16. d4 {[%emt 0:04:52]} Be7 {[%emt 0:05:30]} 17. Kh1 {[%emt 0:04:01]} Rg8 {[%emt 0:03:33]} 18. Ng1 {[%emt 0:06:21]} Be6 {[%emt 0:02:07]} 19. Bxe6 {[%emt 0:06:50]} Qxe6 {[%emt 0:00:11]} 20. Qf5 {[%emt 0:00:19]} exd4 {[%emt 0:02:39]} 21. Bxd4 {[%emt 0:01:37]} O-O-O {[%emt 0:00:31]} 22. Nf3 {[%emt 0:01:23]} hxg3 {[%emt 0:00:44]} 23. hxg3 {[%emt 0:04:37]} h5 {[%emt 0:00:45]} 24. Be3 {[%emt 0:02:47]} h4 {[%emt 0:00:31]} 25. Nd4 {[%emt 0:01:11]} Qxf5 {[%emt 0:00:35]} 26. exf5 {[%emt 0:05:01]} Ne5 {[%emt 0:00:10]} 27. Kg2 {[%emt 0:01:24]} hxg3 {[%emt 0:00:37]} 28. fxg3 {[%emt 0:00:22]} 1/2-1/2

[Event "Hungarian Youth-ch I 2024"]
[Site "Szolnok"]
[Date "2024.04.02"]
[Round "2.4"]
[White "Gulacsi, Donat Ferenc"]
[Black "Herpai, Jozsef Matyas"]
[Result "0-1"]
[ECO "B50"]
[WhiteElo "1912"]
[BlackElo "2037"]
[Annotator "RC"]
[PlyCount "118"]
[EventDate "2024.03.31"]
[EventType "swiss"]
[EventCountry "HUN"]
[SourceTitle "playchess.com"]
[Source "ChessBase"]
[SourceQuality "1"]
[TimeControl "5400+30"]

1. e4 {[%emt 0:00:07]} c5 {[%emt 0:00:24]} 2. Nf3 {[%emt 0:00:08]} d6 {[%emt 0:01:16]} 3. c4 {[%emt 0:00:32]} e5 {[%emt 0:01:11]} 4. d3 {[%emt 0:01:47]} f5 {[%emt 0:02:09]} 5. g3 {[%emt 0:04:11]} Nf6 {[%emt 0:08:59]} 6. exf5 {[%emt 0:14:38]} Bxf5 {[%emt 0:02:13]} 7. Bg2 {[%emt 0:00:07]} Nc6 {[%emt 0:01:42]} 8. O-O {[%emt 0:10:15]} Qd7 {[%emt 0:03:56]} 9. Nc3 {[%emt 0:10:03]} Be7 {[%emt 0:01:58]} 10. Ng5 {[%emt 0:08:31]} O-O {[%emt 0:08:20]} 11. f4 {[%emt 0:02:57]} Nd4 {[%emt 0:07:34]} 12. fxe5 {[%emt 0:18:07]} dxe5 {[%emt 0:00:13]} 13. Nd5 {[%emt 0:11:30]} Kh8 {[%emt 0:06:49]} 14. Be3 {[%emt 0:08:00]} Nxd5 {[%emt 0:10:57]} 15. Bxd5 {[%emt 0:01:07]} Bxg5 {[%emt 0:00:41]} 16. Bxg5 {[%emt 0:00:08]} Bh3 {[%emt 0:00:48]} 17. Bg2 {[%emt 0:05:26]} Bxg2 {[%emt 0:01:26]} 18. Kxg2 {[%emt 0:00:04]} Qc6+ {[%emt 0:00:25]} 19. Kh3 {[%emt 0:00:08]} Nf3 {[%emt 0:09:15]} 20. Be3 {[%emt 0:00:55]} Rf5 {[%emt 0:03:24]} 21. g4 {[%emt 0:00:57]} Rf7 {[%emt 0:00:32]} 22. Kg3 {[%emt 0:00:23]} Raf8 {[%emt 0:00:24]} 23. Rf2 {[%emt 0:01:03]} h5 {[%emt 0:07:20]} 24. gxh5 {[%emt 0:00:46]} Qf6 {[%emt 0:01:15]} 25. Kg2 {[%emt 0:00:35]} Qh4 {[%emt 0:02:44]} 26. Kh1 {[%emt 0:00:27]} Rf5 {[%emt 0:01:45]} 27. Qe2 {[%emt 0:00:27]} b6 {[%emt 0:02:18]} 28. b3 {[%emt 0:00:35]} Qxh5 {[%emt 0:00:32]} 29. Raf1 {[%emt 0:00:14]} Qh3 {[%emt 0:00:54]} 30. a3 {[%emt 0:00:35]} Kg8 {[%emt 0:00:31]} 31. Rd1 {[%emt 0:00:40]} R8f6 {[%emt 0:01:11]} 32. Rg2 {[%emt 0:00:26]} Rh5 {[%emt 0:00:53]} 33. Bg1 {[%emt 0:00:15]} g5 {[%emt 0:02:53]} 34. Rf1 {[%emt 0:00:43]} Rf4 {[%emt 0:01:56]} 35. Rff2 {[%emt 0:00:36]} g4 {[%emt 0:01:55]} 36. b4 {[%emt 0:00:12]} Nd4 {[%emt 0:01:32]} 37. Qd2 {[%emt 0:00:35]} Rf3 {[%emt 0:00:43]} 38. Rxf3 {[%emt 0:00:27]} Nxf3 {[%emt 0:01:10]} 39. Qe2 {[%emt 0:00:31]} cxb4 {[%emt 0:03:00]} 40. axb4 {[%emt 0:00:08]} Rg5 {[%emt 0:00:28]} 41. Qe4 {[%emt 0:00:41]} Rg7 {[%emt 0:01:14]} 42. c5 {[%emt 0:00:26]} Nxg1 {[%emt 0:01:00]} 43. Kxg1 {[%emt 0:00:25]} bxc5 {[%emt 0:00:09]} 44. bxc5 {[%emt 0:00:07]} Qh6 {[%emt 0:01:17]} 45. Qd5+ {[%emt 0:01:10]} Kh7 {[%emt 0:00:38]} 46. Qe4+ {[%emt 0:00:07]} Kg8 {[%emt 0:00:35]} 47. Qd5+ {[%emt 0:01:05]} Kh7 {[%emt 0:00:54]} 48. Qxe5 {[%emt 0:00:16]} Qc1+ {[%emt 0:00:14]} 49. Kf2 {[%emt 0:00:04]} Qd2+ {[%emt 0:00:51]} 50. Kg1 {[%emt 0:00:12]} Qd1+ {[%emt 0:00:18]} 51. Kf2 {[%emt 0:00:05]} Rf7+ {[%emt 0:00:19]} 52. Kg3 {[%emt 0:01:32]} Qf3+ {[%emt 0:00:07]} 53. Kh4 {[%emt 0:00:03]} Qh3+ {[%emt 0:00:39]} 54. Kg5 {[%emt 0:00:08]} Qxg2 {[%emt 0:00:43]} 55. Qd6 {[%emt 0:01:17]} Rg7+ {[%emt 0:00:29]} 56. Kf5 {[%emt 0:00:11]} Qf3+ {[%emt 0:00:11]} 57. Ke5 {[%emt 0:00:25]} Qe3+ {[%emt 0:00:16]} 58. Kd5 {[%emt 0:01:11]} Qxd3+ {[%emt 0:00:08]} 59. Kc6 {[%emt 0:00:29]} Rg6 {[%emt 0:00:50]} 0-1

[Event "Hungarian Youth-ch I 2024"]
[Site "Szolnok"]
[Date "2024.04.02"]
[Round "2.5"]
[White "Gathi, Donat"]
[Black "Borzsei, Andras"]
[Result "1-0"]
[ECO "B42"]
[WhiteElo "2192"]
[BlackElo "2126"]
[Annotator "RC"]
[PlyCount "109"]
[EventDate "2024.03.31"]
[EventType "swiss"]
[EventCountry "HUN"]
[SourceTitle "playchess.com"]
[Source "ChessBase"]
[SourceQuality "1"]
[TimeControl "5400+30"]

1. e4 {[%emt 0:00:03]} c5 {[%emt 0:00:10]} 2. Nf3 {[%emt 0:00:06]} e6 {[%emt 0:00:04]} 3. d4 {[%emt 0:00:07]} cxd4 {[%emt 0:00:03]} 4. Nxd4 {[%emt 0:00:09]} a6 {[%emt 0:00:08]} 5. Bd3 {[%emt 0:00:43]} Bc5 {[%emt 0:00:05]} 6. Nb3 {[%emt 0:00:09]} Ba7 {[%emt 0:00:06]} 7. Nc3 {[%emt 0:00:07]} Nc6 {[%emt 0:00:05]} 8. O-O {[%emt 0:00:56]} Nf6 {[%emt 0:00:18]} 9. Qe2 {[%emt 0:04:29]} d6 {[%emt 0:00:14]} 10. Be3 {[%emt 0:00:47]} b5 {[%emt 0:01:56]} 11. f4 {[%emt 0:12:51]} b4 {[%emt 0:13:57]} 12. Nd1 {[%emt 0:04:24]} e5 {[%emt 0:01:20]} 13. Bxa7 {[%emt 0:05:09]} Rxa7 {[%emt 0:00:23]} 14. Ne3 {[%emt 0:01:26]} O-O {[%emt 0:01:22]} 15. f5 {[%emt 0:16:12]} a5 {[%emt 0:26:30]} 16. Rf3 {[%emt 0:12:58]} a4 {[%emt 0:01:39]} 17. Bb5 {[%emt 0:04:14]} axb3 {[%emt 0:07:30]} 18. Bxc6 {[%emt 0:00:44]} Qb6 {[%emt 0:00:53]} 19. Bd5 {[%emt 0:01:22]} Nxd5 {[%emt 0:01:56]} 20. exd5 {[%emt 0:00:13]} Rxa2 {[%emt 0:00:29]} 21. Rb1 {[%emt 0:05:56]} Ba6 {[%emt 0:04:20]} 22. Qf2 {[%emt 0:03:09]} bxc2 {[%emt 0:02:36]} 23. Nxc2 {[%emt 0:05:07]} Qxf2+ {[%emt 0:01:06]} 24. Kxf2 {[%emt 0:00:09]} e4 {[%emt 0:00:48]} 25. Rb3 {[%emt 0:01:18]} Bd3 {[%emt 0:20:01]} 26. Rc1 {[%emt 0:00:42]} Bxc2 {[%emt 0:03:59]} 27. Rxc2 {[%emt 0:02:27]} Ra5 {[%emt 0:00:12]} 28. Rd2 {[%emt 0:00:38]} Re8 {[%emt 0:00:20]} 29. Ke3 {[%emt 0:00:08]} Rb5 {[%emt 0:00:43]} 30. Rd4 {[%emt 0:00:19]} Kf8 {[%emt 0:00:44]} 31. Rbxb4 {[%emt 0:00:36]} Rxb4 {[%emt 0:00:19]} 32. Rxb4 {[%emt 0:01:27]} Re5 {[%emt 0:00:05]} 33. Rb8+ {[%emt 0:00:59]} Ke7 {[%emt 0:00:27]} 34. g4 {[%emt 0:01:01]} Rxd5 {[%emt 0:01:14]} 35. Rb7+ {[%emt 0:00:29]} Ke8 {[%emt 0:00:46]} 36. Kxe4 {[%emt 0:00:34]} Rd2 {[%emt 0:00:24]} 37. h4 {[%emt 0:00:24]} Rg2 {[%emt 0:05:02]} 38. Kf3 {[%emt 0:03:50]} Rh2 {[%emt 0:00:51]} 39. h5 {[%emt 0:00:31]} g6 {[%emt 0:01:52]} 40. hxg6 {[%emt 0:00:23]} hxg6 {[%emt 0:00:05]} 41. f6 {[%emt 0:01:03]} Rd2 {[%emt 0:02:23]} 42. Kf4 {[%emt 0:00:53]} Rd4+ {[%emt 0:01:51]} 43. Kg5 {[%emt 0:00:08]} Re4 {[%emt 0:00:48]} 44. b4 {[%emt 0:05:35]} d5 {[%emt 0:00:47]} 45. Rb8+ {[%emt 0:00:24]} Kd7 {[%emt 0:00:04]} 46. Rf8 {[%emt 0:00:06]} Rxb4 {[%emt 0:00:25]} 47. Rxf7+ {[%emt 0:00:05]} Ke8 {[%emt 0:00:04]} 48. Ra7 {[%emt 0:00:43]} Kf8 {[%emt 0:02:03]} 49. Rd7 {[%emt 0:00:53]} Rd4 {[%emt 0:00:03]} 50. Rg7 {[%emt 0:01:50]} Ra4 {[%emt 0:00:55]} 51. Rxg6 {[%emt 0:00:26]} d4 {[%emt 0:00:56]} 52. Rg7 {[%emt 0:00:13]} Ra5+ {[%emt 0:00:12]} 53. Kg6 {[%emt 0:00:06]} Rd5 {[%emt 0:00:37]} 54. Rh7 {[%emt 0:00:11]} Kg8 {[%emt 0:00:14]} 55. f7+ {[%emt 0:00:05]} 1-0

[Event "Hungarian Youth-ch I 2024"]
[Site "Szolnok"]
[Date "2024.04.02"]
[Round "2.6"]
[White "Bodrogi, Bendeguz"]
[Black "Csernyik, Mark"]
[Result "1-0"]
[ECO "A05"]
[WhiteElo "2316"]
[BlackElo "2016"]
[Annotator "RC"]
[PlyCount "79"]
[EventDate "2024.03.31"]
[EventType "swiss"]
[EventCountry "HUN"]
[SourceTitle "playchess.com"]
[Source "ChessBase"]
[SourceQuality "1"]
[TimeControl "5400+30"]

1. Nf3 {[%emt 0:00:11]} Nf6 {[%emt 0:00:19]} 2. g3 {[%emt 0:00:14]} g6 {[%emt 0:00:05]} 3. b3 {[%emt 0:00:06]} Bg7 {[%emt 0:00:16]} 4. Bb2 {[%emt 0:00:08]} O-O {[%emt 0:00:24]} 5. Bg2 {[%emt 0:00:10]} d6 {[%emt 0:00:18]} 6. d4 {[%emt 0:00:05]} c5 {[%emt 0:00:41]} 7. c4 {[%emt 0:00:06]} Nc6 {[%emt 0:01:35]} 8. O-O {[%emt 0:05:23]} cxd4 {[%emt 0:03:17]} 9. Nxd4 {[%emt 0:00:07]} Bd7 {[%emt 0:00:17]} 10. Nc3 {[%emt 0:00:06]} Qc8 {[%emt 0:08:31]} 11. Rc1 {[%emt 0:02:12]} Nxd4 {[%emt 0:13:05]} 12. Qxd4 {[%emt 0:00:07]} Bh3 {[%emt 0:00:51]} 13. Nd5 {[%emt 0:03:48]} Re8 {[%emt 0:00:47]} 14. Bxh3 {[%emt 0:07:22]} Qxh3 {[%emt 0:00:08]} 15. Nc7 {[%emt 0:01:21]} Rac8 {[%emt 0:10:32]} 16. Nxe8 {[%emt 0:00:42]} Nxe8 {[%emt 0:00:06]} 17. Qd2 {[%emt 0:00:17]} Rc5 {[%emt 0:00:20]} 18. f3 {[%emt 0:02:42]} Bh6 {[%emt 0:02:08]} 19. e3 {[%emt 0:04:40]} Nc7 {[%emt 0:03:00]} 20. f4 {[%emt 0:01:41]} Ne6 {[%emt 0:00:27]} 21. Qg2 {[%emt 0:00:48]} Qxg2+ {[%emt 0:01:52]} 22. Kxg2 {[%emt 0:00:07]} Ra5 {[%emt 0:00:08]} 23. a3 {[%emt 0:06:06]} Bg7 {[%emt 0:00:50]} 24. b4 {[%emt 0:01:36]} Bxb2 {[%emt 0:00:36]} 25. bxa5 {[%emt 0:00:05]} Bxc1 {[%emt 0:00:10]} 26. Rxc1 {[%emt 0:00:06]} Nc5 {[%emt 0:00:06]} 27. Rb1 {[%emt 0:00:25]} a6 {[%emt 0:00:45]} 28. e4 {[%emt 0:01:28]} f5 {[%emt 0:00:42]} 29. exf5 {[%emt 0:04:22]} gxf5 {[%emt 0:00:22]} 30. Kh3 {[%emt 0:00:25]} Kf7 {[%emt 0:00:48]} 31. Kh4 {[%emt 0:01:30]} Kf6 {[%emt 0:02:57]} 32. Kh5 {[%emt 0:03:23]} e5 {[%emt 0:00:22]} 33. Rb6 {[%emt 0:01:28]} e4 {[%emt 0:01:45]} 34. Rxd6+ {[%emt 0:00:05]} Ke7 {[%emt 0:00:21]} 35. Rd5 {[%emt 0:00:12]} Nd3 {[%emt 0:00:36]} 36. Kg5 {[%emt 0:01:47]} Ke6 {[%emt 0:00:19]} 37. h3 {[%emt 0:01:03]} h6+ {[%emt 0:01:59]} 38. Kg6 {[%emt 0:00:07]} h5 {[%emt 0:00:35]} 39. h4 {[%emt 0:00:28]} Nf2 {[%emt 0:00:36]} 40. Re5+ {[%emt 0:00:04]} 1-0

[Event "Hungarian Youth-ch I 2024"]
[Site "Szolnok"]
[Date "2024.04.02"]
[Round "2.7"]
[White "Panda, Barnabas"]
[Black "Kolimar, Kristof Pal"]
[Result "0-1"]
[ECO "A15"]
[WhiteElo "2066"]
[BlackElo "2282"]
[Annotator "RC"]
[PlyCount "82"]
[EventDate "2024.03.31"]
[EventType "swiss"]
[EventCountry "HUN"]
[SourceTitle "playchess.com"]
[Source "ChessBase"]
[SourceQuality "1"]
[TimeControl "5400+30"]

1. c4 {[%emt 0:00:05]} Nf6 {[%emt 0:00:17]} 2. g3 {[%emt 0:00:19]} g6 {[%emt 0:00:04]} 3. b3 {[%emt 0:00:10]} Bg7 {[%emt 0:01:07]} 4. Bb2 {[%emt 0:00:25]} O-O {[%emt 0:02:59]} 5. Bg2 {[%emt 0:00:27]} d6 {[%emt 0:02:22]} 6. d4 {[%emt 0:01:47]} Nfd7 {[%emt 0:06:49]} 7. Nf3 {[%emt 0:10:47]} Nc6 {[%emt 0:02:42]} 8. O-O {[%emt 0:04:59]} e5 {[%emt 0:00:16]} 9. dxe5 {[%emt 0:01:20]} dxe5 {[%emt 0:01:30]} 10. Nfd2 {[%emt 0:11:16]} f5 {[%emt 0:06:03]} 11. e4 {[%emt 0:08:57]} f4 {[%emt 0:04:56]} 12. Bh3 {[%emt 0:00:20]} Nf6 {[%emt 0:10:20]} 13. Bxc8 {[%emt 0:01:19]} Qxc8 {[%emt 0:00:13]} 14. Kg2 {[%emt 0:02:08]} Nd4 {[%emt 0:04:34]} 15. Nc3 {[%emt 0:05:53]} c6 {[%emt 0:06:44]} 16. f3 {[%emt 0:10:55]} Rd8 {[%emt 0:06:47]} 17. Rc1 {[%emt 0:08:05]} fxg3 {[%emt 0:07:21]} 18. hxg3 {[%emt 0:00:35]} Bh6 {[%emt 0:00:37]} 19. Ncb1 {[%emt 0:06:40]} Qe6 {[%emt 0:02:33]} 20. Qe1 {[%emt 0:04:31]} Nh5 {[%emt 0:03:21]} 21. Qf2 {[%emt 0:06:30]} Bf4 {[%emt 0:02:05]} 22. g4 {[%emt 0:04:49]} Bxd2 {[%emt 0:04:10]} 23. gxh5 {[%emt 0:01:04]} Bxc1 {[%emt 0:00:13]} 24. Bxc1 {[%emt 0:00:17]} Rf8 {[%emt 0:01:28]} 25. Qh4 {[%emt 0:02:40]} gxh5 {[%emt 0:02:59]} 26. Qxh5 {[%emt 0:05:03]} Qg6+ {[%emt 0:02:27]} 27. Qxg6+ {[%emt 0:00:08]} hxg6 {[%emt 0:00:02]} 28. Be3 {[%emt 0:02:03]} Rad8 {[%emt 0:00:24]} 29. Nc3 {[%emt 0:00:37]} b6 {[%emt 0:00:52]} 30. Rf2 {[%emt 0:00:45]} Ne6 {[%emt 0:00:23]} 31. Ne2 {[%emt 0:00:30]} Rd3 {[%emt 0:00:32]} 32. Bc1 {[%emt 0:00:21]} Nd4 {[%emt 0:07:42]} 33. Nxd4 {[%emt 0:00:16]} exd4 {[%emt 0:00:04]} 34. Bd2 {[%emt 0:00:36]} c5 {[%emt 0:02:03]} 35. f4 {[%emt 0:00:50]} a5 {[%emt 0:00:47]} 36. e5 {[%emt 0:00:30]} Kf7 {[%emt 0:00:26]} 37. f5 {[%emt 0:00:28]} gxf5 {[%emt 0:00:15]} 38. Rxf5+ {[%emt 0:00:06]} Ke8 {[%emt 0:00:01]} 39. Rxf8+ {[%emt 0:00:31]} Kxf8 {[%emt 0:00:03]} 40. Bg5 {[%emt 0:00:51]} Ke8 {[%emt 0:00:26]} 41. e6 {[%emt 0:00:32]} a4 {[%emt 0:00:35]} 0-1

[Event "Hungarian Youth-ch I 2024"]
[Site "Szolnok"]
[Date "2024.04.02"]
[Round "2.8"]
[White "Turcsanyi, Vince Gergo"]
[Black "Apro, Barnabas"]
[Result "1-0"]
[ECO "A13"]
[WhiteElo "2247"]
[BlackElo "2026"]
[Annotator "RC"]
[PlyCount "53"]
[EventDate "2024.03.31"]
[EventType "swiss"]
[EventCountry "HUN"]
[SourceTitle "playchess.com"]
[Source "ChessBase"]
[SourceQuality "1"]
[TimeControl "5400+30"]

1. c4 {[%emt 0:00:05]} e6 {[%emt 0:00:09]} 2. Nf3 {[%emt 0:00:09]} d5 {[%emt 0:00:11]} 3. e3 {[%emt 0:00:07]} Nf6 {[%emt 0:00:09]} 4. Nc3 {[%emt 0:00:29]} Be7 {[%emt 0:00:42]} 5. b3 {[%emt 0:00:07]} O-O {[%emt 0:01:35]} 6. Bb2 {[%emt 0:00:20]} b6 {[%emt 0:01:10]} 7. cxd5 {[%emt 0:00:24]} exd5 {[%emt 0:02:26]} 8. d4 {[%emt 0:00:10]} c5 {[%emt 0:07:32]} 9. Rc1 {[%emt 0:06:36]} Nc6 {[%emt 0:08:05]} 10. Bb5 {[%emt 0:03:26]} Bb7 {[%emt 0:01:29]} 11. O-O {[%emt 0:00:56]} Rc8 {[%emt 0:03:38]} 12. dxc5 {[%emt 0:07:57]} bxc5 {[%emt 0:00:38]} 13. Na4 {[%emt 0:00:18]} Ne4 {[%emt 0:09:38]} 14. Nd2 {[%emt 0:00:40]} a6 {[%emt 0:11:43]} 15. Nxe4 {[%emt 0:13:19]} axb5 {[%emt 0:02:19]} 16. Naxc5 {[%emt 0:01:30]} dxe4 {[%emt 0:00:53]} 17. Nxb7 {[%emt 0:00:48]} Qb6 {[%emt 0:01:53]} 18. Nd6 {[%emt 0:01:10]} Bxd6 {[%emt 0:06:10]} 19. Qxd6 {[%emt 0:00:23]} Rfd8 {[%emt 0:00:19]} 20. Qg3 {[%emt 0:02:21]} g6 {[%emt 0:00:51]} 21. Qh4 {[%emt 0:06:10]} Nb4 {[%emt 0:04:33]} 22. Rxc8 {[%emt 0:03:55]} Rxc8 {[%emt 0:00:14]} 23. Qxe4 {[%emt 0:00:42]} Nxa2 {[%emt 0:02:27]} 24. Qe5 {[%emt 0:04:11]} f6 {[%emt 0:00:12]} 25. Qd5+ {[%emt 0:00:23]} Kf8 {[%emt 0:01:38]} 26. Qd7 {[%emt 0:00:52]} Qc7 {[%emt 0:01:58]} 27. Qxb5 {[%emt 0:00:42]} 1-0